Cogmind - Beta 15 @@@ ROGUE MODE // 2025.07.23 @ 05:32:31 // AFD2019/Pay2Buy Player: shapeshifter Result: Self-destructed Performance ------------- Evolutions (4) 2000 Regions Visited (6) 1200 Robots Destroyed (22) 110 Value Destroyed (689) 689 Prototype IDs (1) 20 Alien Tech Used (0) 0 Bonus (1248) 1248 TOTAL SCORE: 5267 Bonus ------- Follower Combat Kills 60 Entered DSFs 500 Registered with UFD 300 Met Optimus in HQ 500 Friendly Fire -112 Cogmind --------- Core Integrity 680/850 Matter 6/300 Energy 100/100 System Corruption 0% Temperature Cool (-150) Movement Core (200) Ox3 Location -6/DSF Parts ------- > --- POWER (2) -------- (None) > --- PROPULSION (4) --- (None) > --- UTILITY (6) ------ Improved Cryofiber Web Heart of Steel > --- WEAPON (3) ------- (None) > --- INVENTORY (10) --- Airjet Peak State ------------ > --- POWER ------------ Ion Engine > --- PROPULSION ------- Aluminum Leg Improved Aluminum Leg > --- UTILITY ---------- Improved Cryofiber Web High-capacity Battery Heart of Steel > --- WEAPON ----------- Autogun Light Cannon Rocket Launcher > --- INVENTORY -------- Airjet [Rating: 39] Favorites ----------- Power Ion Engine Engine Ion Engine Propulsion Improved Aluminum Leg Leg Improved Aluminum Leg Utility Particle Charger Device Particle Charger Storage High-capacity Battery Weapon Autogun Ballistic Gun Autogun Ballistic Cannon Light Cannon Launcher Rocket Launcher Build | -11 -10 -10 -10 -9 -6 -6 ------- Run | Yrd Mat Min Sub Scr Fac DSF Slots Evolved 8 | . . . . . 8 . Power 1 | . . . . . 1 . Propulsion 2 | . . . . . 2 . Utility 4 | . . . . . 4 . Weapon 1 | . . . . . 1 . Parts Attached 5 | . . . 1 1 3 . Power . | . . . . . . . Engine . | . . . . . . . Core . | . . . . . . . Reactor . | . . . . . . . Propulsion . | . . . . . . . Treads . | . . . . . . . Leg . | . . . . . . . Wheel . | . . . . . . . Hover . | . . . . . . . Flight . | . . . . . . . Utility 3 | . . . . 1 2 . Device 2 | . . . . . 2 . Storage 1 | . . . . 1 . . Processor . | . . . . . . . Hackware . | . . . . . . . Protection . | . . . . . . . Artifact . | . . . . . . . Weapon 2 | . . . 1 . 1 . Energy Gun . | . . . . . . . Energy Cannon . | . . . . . . . Ballistic Gun . | . . . . . . . Ballistic Cannon 1 | . . . . . 1 . Launcher 1 | . . . 1 . . . Special Weapon . | . . . . . . . Impact Weapon . | . . . . . . . Slashing Weapon . | . . . . . . . Piercing Weapon . | . . . . . . . Special Melee Weapon . | . . . . . . . Unidentified Prototypes . | . . . . . . . Parts Lost 9 | . . . 1 1 . 7 Power 1 | . . . . . . 1 Propulsion 2 | . . . . . . 2 Utility 3 | . . . 1 1 . 1 Weapon 3 | . . . . . . 3 Highest Loss Streak 6 | . . . 1 1 . 6 To Critical Strikes . | . . . . . . . Average Backups 2 | . . 2 3 3 1 1 Power . | . . . . . . . Propulsion . | . . 1 1 1 1 1 Utility . | . . . . . . . Weapon . | . . . . 1 . . Tool/Special . | . . . . . . . Unused Backups 1 | . . . . . . 1 Power . | . . . . . . . Propulsion 1 | . . . . . . 1 Utility . | . . . . . . . Weapon . | . . . . . . . Tool/Special . | . . . . . . . Average Slot Usage (%) 89 | . 85 100 92 99 58 33 Engine 12 | . 14 14 14 14 6 2 Leg 25 | . 28 28 28 28 13 3 Device 16 | . 14 28 20 13 12 13 Storage 6 | . . . . 14 6 5 Ballistic Gun 12 | . 14 14 14 14 6 1 Ballistic Cannon 3 | . 14 14 2 . 5 2 Launcher 9 | . . . 11 14 6 2 Peak Build Rating 39 | 10 15 15 16 15 39 39 Average Rating 16 | 10 10 15 14 14 38 32 On Entrance 14 | . 10 15 15 13 12 39 Naked Turns . | . . . . . . . Heaviest Build 30 | 12 15 15 16 19 30 30 Greatest Support 23 | 23 23 23 23 23 23 23 Greatest Overweight (x) 6 | . . . . . 1 6 Average Overweight (x) . | . . . . . 1 3 Largest Inventory Capacity 10 | 10 10 10 10 10 10 10 Average Capacity 10 | 10 10 10 10 10 10 10 Most Carried 6 | . 4 4 6 6 3 1 Average Carried 4 | . . 4 5 5 1 1 Final Capacity 10 | 10 10 10 10 10 10 10 Final Carried 6 | . 4 4 6 6 1 1 Class Distribution -------------------- 93% | Mutant 6% | Gunner Dominant Class ---------------- Mutant | -10/Materials Mutant | -10/Mines Mutant | -10/Subcaves Mutant | -9/Scraptown Gunner | -6/Factory Mutant | -6/DSF Resources | -11 -10 -10 -10 -9 -6 -6 ----------- Run | Yrd Mat Min Sub Scr Fac DSF Matter Collected 457 | 16 100 70 178 89 . 4 Remotely . | . . . . . . . Salvage Created 659 | 16 141 . 374 128 . . Parts . | . . . . . . . Haulers Intercepted . | . . . . . . . Recyclers Shooed . | . . . . . . . Parts Field Recycled . | . . . . . . . Retrieved Matter . | . . . . . . . Parts Self-Destructed . | . . . . . . . Prevented . | . . . . . . . Kills | -11 -10 -10 -10 -9 -6 -6 ------- Run | Yrd Mat Min Sub Scr Fac DSF Combat Hostiles Destroyed 19 | . 5 . 11 3 . . Guns 4 | . 2 . 1 1 . . Cannons 3 | . 3 . . . . . AOE 12 | . . . 10 2 . . Classes Destroyed 8 | 1 3 . 1 3 . . Tunneler 2 | 1 1 . . . . . Watcher 1 | . 1 . . . . . Swarmer 3 | . 3 . . . . . Grunt 2 | . 2 . . . . . Subdweller 11 | . . . 11 . . . Federalist 1 | . . . . 1 . . Guru 1 | . . . . 1 . . Scrapper 1 | . . . . 1 . . Best Kill Streak 6 | 1 3 . 6 3 . . Combat Bots Only 6 | . 3 . 6 3 . . Max Kills in Single Turn 3 | 1 1 . 3 2 . . Gunslinging . | . . . . . . . Exploded 3 | . . . 3 1 . . Melee . | . . . . . . . Uniques/NPCs Destroyed . | . . . . . . . Combat | -11 -10 -10 -10 -9 -6 -6 -------- Run | Yrd Mat Min Sub Scr Fac DSF Hostile Shots Fired 104 | . 9 11 18 8 . 58 Missed 31 | . 1 2 8 . . 20 Hits 73 | . 8 9 10 8 . 38 Projectile 73 | . 8 9 10 8 . 38 AOE 2 | . . . 2 . . . Critical Strikes 2 | . . . . . . 2 Damage Taken 1772 | . 80 114 363 105 . 1110 Core 327 | . 20 37 88 12 . 170 Absorbed by Shields . | . . . . . . . Core Remaining (%) 68 | 100 . . . 37 . . Volleys Fired 51 | 2 12 4 19 3 . 11 Largest 2 | 2 2 2 2 2 . 2 Hottest 56 | 53 53 53 56 56 . 53 Shots Fired 92 | 4 24 8 38 6 . 12 Gun 41 | 2 12 4 19 3 . 1 Cannon 32 | 2 12 4 3 . . 11 Launcher 19 | . . . 16 3 . . Special . | . . . . . . . Kinetic 73 | 4 24 8 22 3 . 12 Thermal . | . . . . . . . Explosive 19 | . . . 16 3 . . Electromagnetic . | . . . . . . . Robot Hit Streak 7 | 1 3 3 7 1 . 4 Robot Miss Streak 4 | 1 4 2 1 2 . 2 Penetration Max . | . . . . . . . Secondary Targets . | . . . . . . . Shots Hit Robots 45 | 2 11 4 19 1 . 8 Core Hits 37 | 1 6 2 21 5 . 2 Critical Kills . | . . . . . . . Critical Parts Destroyed . | . . . . . . . Critical Strikes . | . . . . . . . Melee Attacks . | . . . . . . . Impact . | . . . . . . . Slashing . | . . . . . . . Piercing . | . . . . . . . Sneak Attacks . | . . . . . . . Combat Hostiles . | . . . . . . . Follow-up Attacks . | . . . . . . . Damage Inflicted 1586 | 26 206 83 902 207 . 162 Guns 402 | 26 89 53 168 48 . 18 Cannons 317 | . 107 30 36 . . 144 Explosions 857 | . . . 698 159 . . Melee . | . . . . . . . Ramming 10 | . 10 . . . . . Kinetic 719 | 26 196 83 204 48 . 162 Thermal . | . . . . . . . Explosive 857 | . . . 698 159 . . Electromagnetic . | . . . . . . . Impact . | . . . . . . . Slashing . | . . . . . . . Piercing . | . . . . . . . Highest Corruption . | . . . . . . . Average Corruption . | . . . . . . . Corruption Purged . | . . . . . . . Corruption Blocked . | . . . . . . . Overload Shots . | . . . . . . . Overflow Damage 29 | . 16 . 1 12 . . Projectiles 16 | . 16 . . . . . Explosions 13 | . . . 1 12 . . Melee . | . . . . . . . Knockbacks 2 | . 1 1 . . . . Impact 1 | . 1 . . . . . Kinetic 1 | . . 1 . . . . Secondary . | . . . . . . . Self-Inflicted Damage 163 | . . . 117 46 . . Shots 6 | . . . 4 2 . . Rammed . | . . . . . . . Targets Rammed 1 | . 1 . . . . . Kicked 1 | . 1 . . . . . Crushed . | . . . . . . . Highest Temperature 56 | 12 18 56 . 20 . . Average Temperature 14 | 9 9 24 . 11 . . Received Heat Transfer 209 | . 18 71 48 . . 72 Siege Activations . | . . . . . . . Martial Activations . | . . . . . . . Shielding Activations . | . . . . . . . Robots Disrupted . | . . . . . . . Combat Hostiles . | . . . . . . . Robots Corrupted . | . . . . . . . Combat Hostiles . | . . . . . . . Parts Fried . | . . . . . . . Impact Corruptions . | . . . . . . . Robots Melted . | . . . . . . . Combat Hostiles . | . . . . . . . Parts Melted . | . . . . . . . Heat Transferred . | . . . . . . . Parts Sabotaged . | . . . . . . . Parts Stolen . | . . . . . . . Parts Stripped . | . . . . . . . Power Chain Reactions . | . . . . . . . Alert | -11 -10 -10 -10 -9 -6 -6 ------- Run | Yrd Mat Min Sub Scr Fac DSF Maximum Alert Level . | . . . . . . . Low Security (%) 100 | 100 100 100 . . 100 100 Level 1 . | . . . . . . . Level 2 . | . . . . . . . Level 3 . | . . . . . . . Level 4 . | . . . . . . . Level 5 . | . . . . . . . High Security . | . . . . . . . Max Security . | . . . . . . . Peak Influence 88 | . 88 56 . . . 60 Initial 17 | . . 17 . . . . Average 20 | . 32 18 . . . 18 Influence Increases 266 | 5 145 56 . . . 60 Destroy 0b10 Robot/C 140 | . 100 40 . . . . Destroy 0b10 Robot/NC 15 | 5 10 . . . . . Destroy Leader 32 | . 22 10 . . . . Allied During Kill 6 | . . 6 . . . . Successful Hack 12 | . 12 . . . . . Destroy Structure 1 | . 1 . . . . . Lose Combat Pursuer 60 | . . . . . . 60 Influence Decreases 216 | 5 100 101 . . . 10 Entered New Map 28 | . . 28 . . . . Time Decay 138 | 5 100 33 . . . . Lost Part 10 | . . . . . . 10 Lost Ally 40 | . . 40 . . . . Squads Dispatched 3 | . 1 . . . . 2 Investigation 1 | . 1 . . . . . Extermination . | . . . . . . . Reinforcement 2 | . . . . . . 2 Assault . | . . . . . . . Garrison . | . . . . . . . Intercept . | . . . . . . . Searches Triggered . | . . . . . . . Construction Impeded . | . . . . . . . Haulers Reinforced . | . . . . . . . Active Scanning Responses . | . . . . . . . Cargo Convoy Interrupts . | . . . . . . . Stealth | -11 -10 -10 -10 -9 -6 -6 --------- Run | Yrd Mat Min Sub Scr Fac DSF Distress Signals 1 | . 1 . . . . . Communications Jammed . | . . . . . . . Distress Signals . | . . . . . . . Times Spotted 53 | . 8 20 11 7 . 7 Peak Tracking Total 11 | . 5 11 3 4 . 6 Tactical Retreats 3 | . . 1 . . . 2 Traps | -11 -10 -10 -10 -9 -6 -6 ------- Run | Yrd Mat Min Sub Scr Fac DSF Traps Triggered . | . . . . . . . Indirectly . | . . . . . . . Trap Hack Attempts . | . . . . . . . Triggered . | . . . . . . . Disarmed . | . . . . . . . Reprogrammed . | . . . . . . . Reused . | . . . . . . . Traps Extracted . | . . . . . . . Installed . | . . . . . . . Triggered . | . . . . . . . Machines | -11 -10 -10 -10 -9 -6 -6 ---------- Run | Yrd Mat Min Sub Scr Fac DSF Machines Disabled 1 | . . . . 1 . . Max in Single Turn 1 | . . . . 1 . . Machines Repaired . | . . . . . . . Machines Dismantled . | . . . . . . . Machines Sabotaged . | . . . . . . . Overloaded Fab Kills . | . . . . . . . Hacking | -11 -10 -10 -10 -9 -6 -6 --------- Run | Yrd Mat Min Sub Scr Fac DSF Machines Accessed 6 | . 3 . 1 1 1 . Terminals 4 | . 3 . . . 1 . Fabricators . | . . . . . . . Repair Stations . | . . . . . . . Recycling Units . | . . . . . . . Scanalyzers . | . . . . . . . Garrison Access . | . . . . . . . Total Hacks 16 | . 7 . 4 4 1 . Successful 12 | . 3 . 4 4 1 . Failed 4 | . 4 . . . . . Catastrophic 1 | . 1 . . . . . Database Lockouts . | . . . . . . . Manual 6 | . 6 . . . . . Terminals 8 | . 7 . . . 1 . Fabricators . | . . . . . . . Repair Stations . | . . . . . . . Recycling Units . | . . . . . . . Scanalyzers . | . . . . . . . Garrison Access . | . . . . . . . Terminal Hacks 10 | . 1 . 4 4 1 . Record 8 | . . . 4 4 . . Open DSF 1 | . . . . . 1 . Zone Layout 1 | . 1 . . . . . Fabricator Hacks . | . . . . . . . Repair Station Hacks . | . . . . . . . Recycling Unit Hacks . | . . . . . . . Scanalyzer . | . . . . . . . Garrison Access Hacks . | . . . . . . . Unauthorized Hacks 2 | . 2 . . . . . Terminals 2 | . 2 . . . . . Botnet 2 | . 2 . . . . . Fabricators . | . . . . . . . Repair Stations . | . . . . . . . Recycling Units . | . . . . . . . Scanalyzers . | . . . . . . . Garrison Access . | . . . . . . . Data Cores Recovered . | . . . . . . . Used . | . . . . . . . Hacking Detections 3 | . 2 . . . 1 . Full Trace Events 1 | . 1 . . . . . Feedback Events . | . . . . . . . Feedback Blocked . | . . . . . . . Robot Schematics Acquired . | . . . . . . . Robots Built . | . . . . . . . Authchips . | . . . . . . . Time . | . . . . . . . Total Robot Build Rating . | . . . . . . . Part Schematics Acquired . | . . . . . . . Parts Built . | . . . . . . . Authchips . | . . . . . . . Time . | . . . . . . . Total Part Build Rating . | . . . . . . . Parts Repaired . | . . . . . . . Time . | . . . . . . . Parts Recycled . | . . . . . . . Recycled Matter . | . . . . . . . Retrieved Matter . | . . . . . . . Retrieved Components . | . . . . . . . Parts Scanalyzed . | . . . . . . . Part Schematics Acquired . | . . . . . . . Parts Damaged . | . . . . . . . Bothacking | -11 -10 -10 -10 -9 -6 -6 ------------ Run | Yrd Mat Min Sub Scr Fac DSF Used RIF Installer . | . . . . . . . Robots Hacked . | . . . . . . . Non-combat . | . . . . . . . Combat . | . . . . . . . Robot Hacks Applied . | . . . . . . . Relay Couplers Released . | . . . . . . . Fabnet Peak Effective % . | . . . . . . . Robots Rewired . | . . . . . . . Allies Hacked . | . . . . . . . Hacks Repelled . | . . . . . . . Allies | -11 -10 -10 -10 -9 -6 -6 -------- Run | Yrd Mat Min Sub Scr Fac DSF Total Allies 2 | . . 2 . . . . Largest Group 2 | . . 2 . . . . Highest-Rated Group 45 | . . 45 . . . . Highest-Rated Ally 31 | . . 31 . . . . Total Orders . | . . . . . . . Ally Attacks 11 | . . 11 . . . . Total Damage 189 | . . 189 . . . . Kills 4 | . . 4 . . . . Allies Corrupted . | . . . . . . . Allies Melted 1 | . . 1 . . . . Intel | -11 -10 -10 -10 -9 -6 -6 ------- Run | Yrd Mat Min Sub Scr Fac DSF Active Infowar (turns) . | . . . . . . . Robot Analysis Total . | . . . . . . . Derelict Logs Recovered . | . . . . . . . Drone Launches . | . . . . . . . Drone Recoveries . | . . . . . . . Exploration | -11 -10 -10 -10 -9 -6 -6 ------------- Run | Yrd Mat Min Sub Scr Fac DSF Turns Passed 2298 | 29 300 92 604 1019 119 135 Spaces Moved 1542 | 20 194 68 410 740 62 48 Core 34 | . . . . . . 34 Treads . | . . . . . . . Legs 1508 | 20 194 68 410 740 62 14 Wheels . | . . . . . . . Hover . | . . . . . . . Flight . | . . . . . . . Fastest Speed 120 | 120 120 120 120 120 190 190 Average Speed 126 | 120 120 120 120 120 190 232 Slowest Speed 350 | 120 120 120 120 120 190 350 Overloaded Moves . | . . . . . . . Propulsion Burnouts . | . . . . . . . Robots Hopped . | . . . . . . . Potential Cave-ins 2 | . . . 2 . . . Cave-ins Triggered . | . . . . . . . Exploration Rate (%) 30 | 4 30 20 25 75 3 57 Regions Visited 6 Branch Regions 3 Pre-discovered Areas 2 | . . . 2 . . . Known Exits Taken 1 | . . . . . 1 . Unknown Exits Taken 5 | 1 1 1 1 1 . . Scrap Searched . | . . . . . . . Spaces Dug 31 | . . . 31 . . . Terrain Destroyed 185 | 1 . . 148 36 . . Melee . | . . . . . . . Projectile 1 | 1 . . . . . . AOE 184 | . . . 148 36 . . Terrain Rammed . | . . . . . . . Walls Destroyed . | . . . . . . . Machines Disabled . | . . . . . . . Actions | -11 -10 -10 -10 -9 -6 -6 --------- Run | Yrd Mat Min Sub Scr Fac DSF Total 1807 | 21 240 71 487 865 64 59 Wait 211 | . 32 . 57 122 . . Move 1536 | 19 193 67 409 739 61 48 Hop . | . . . . . . . Pick Up 2 | . 1 . 1 . . . Fast Attach . | . . . . . . . Attach 4 | . . . . 1 3 . Detach . | . . . . . . . Swap 1 | . . . 1 . . . Drop 1 | . 1 . . . . . Fire 51 | 2 12 4 19 3 . 11 Melee . | . . . . . . . Ram . | . . . . . . . Kick 1 | . 1 . . . . . Crush . | . . . . . . . Escape Stasis . | . . . . . . . Rewire . | . . . . . . . Trap . | . . . . . . . Miscellaneous . | . . . . . . . Route ------- -11/Scrapyard -10/Materials -10/Mines -10/Subcaves -9/Scraptown (discovered 2 exits: *Fac x2) -6/Factory -6/DSF History --------- Turn | Location | Event 7 | -11/Scrapyard | Discovered new exit (range 13) 30 | -11/Scrapyard | Entered Materials 128 | -10/Materials | Discovered new exit (range 12) 316 | -10/Materials | Build established: Mutant 330 | -10/Materials | Entered Mines 366 | -10/Mines | Assembled infested the area 371 | -10/Mines | Assisted by a Guerilla fighting off Assembled 405 | -10/Mines | Discovered new exit (range 11) 422 | -10/Mines | Entered Subcaves 423 | -10/Subcaves | Approached by a straggling Scientist 446 | -10/Subcaves | Lost 3 allies 483 | -10/Subcaves | Visited Clippyterm 487 | -10/Subcaves | Learned location of Extension (-6) 487 | -10/Subcaves | Learned Research security intel 544 | -10/Subcaves | Ambushed by Subdweller buried in earth 562 | -10/Subcaves | Ambushed by Subdweller buried in earth 562 | -10/Subcaves | Ambushed by Subdweller buried in earth 705 | -10/Subcaves | Ambushed by Subdweller buried in earth 705 | -10/Subcaves | Ambushed by Subdweller buried in earth 705 | -10/Subcaves | Ambushed by Subdweller buried in earth 708 | -10/Subcaves | Ambushed by Subdweller buried in earth 847 | -10/Subcaves | Learned location of Zion (-6) 847 | -10/Subcaves | Met a Zionite searching for "candidates" 898 | -10/Subcaves | Visited triangular shrine 1018 | -10/Subcaves | Scientist uncovered a shortcut to Scraptown 1024 | -10/Subcaves | Core integrity fell below 50% 1026 | -10/Subcaves | Entered Scraptown 1073 | -9/Scraptown | Visited Bundlers 1105 | -9/Scraptown | Visited CPS Storage 1357 | -9/Scraptown | Heard Great Nut preacher, LISTEN AND RECITE! 1378 | -9/Scraptown | Discovered new exit (range 13) 1447 | -9/Scraptown | Visited Assassins FH 1511 | -9/Scraptown | Visited UFD Registry 1511 | -9/Scraptown | Registered with UFD as "Roughlauncher" 1543 | -9/Scraptown | Visited Science Testing Area 1560 | -9/Scraptown | Visited Scrap Suit Storage 1602 | -9/Scraptown | Visited Curators Association 1715 | -9/Scraptown | Visited Botcube Research 1768 | -9/Scraptown | Met Optimus 1768 | -9/Scraptown | Accepted into 0bPrime 1834 | -9/Scraptown | Discovered new exit (range 3) 2016 | -9/Scraptown | Civil war broke out across Scraptown 2045 | -9/Scraptown | Entered Factory 2045 | -6/Factory | Evolved 8 slots: Power x1, Propulsion x2, Utility x4, Weapon x1 2045 | -6/Factory | Found Heart of Steel 2162 | -6/Factory | Identified exit to DSF 2164 | -6/Factory | Entered DSF 2199 | -6/DSF | Additional patrols routed to DSF 2250 | -6/DSF | Lost 6 parts (1p2n3w) 2299 | -6/DSF | Self-destructed Last Messages --------------- dispatching Specialist reinforcements to area. 02192_ H-61 Shepherd calls for reinforcements. 02192_ ALERT: Hostile activity reported, dispatching reinforcements to area. 02194_ Penetrated by Slug. 02194_ Aluminum Leg destroyed. 02194_ Autogun destroyed. 02196_ Imp. Aluminum Leg destroyed. 02198_ Penetrated by Slug. 02199_ Hostiles detected in DSF, routing additional patrols. 02200_ Rocket Launcher destroyed. 02200_ Knocked back. 02201_ Acquired 4 matter. 02213_ Lgt. Cannon destroyed. 02214_ Slug penetrates Wall. 02219_ Ion Engine destroyed. 02289_ Hcp. Battery destroyed. 02295_ Knocked back. 02297_ Critical hit (Burn: +37). Map ----- +----------------------------------------------------+ | | | ???????????????????????????????????????????? | | ???????????????????????????????????????????? | | ???????????????????????????????????????????? | | ???????????????????????????????????????????? | | ???????????????????????????????????????????? | | ???????????????????????????????????????????? | | ???????????????????????????????????????????? | | ???????????????????????????????????????????? | | ???????????????????????????????????????????? | | ???????????????????????????????????????????? | | ???????????????????????????????????????????? | | ???????????????????????????????????????????? | | ???????????????????????????????????????????? | | ???????????????????????????????????????????? | | ???????????????????????????????????????????? | | ???????????????????????????????????????????? | | ???????????????????????????????????????????? | | ???????????????????????????????????????????? | | ???????????????????????????????????????????? | | ???????????????????????????????????????????? | | ??????????????????????###############??????? | | ???????????????## ???# # ## #??????? | | ??????????# ##A A## # ## #??????? | | ?????????? %% #??????? | | ?? ????? A % @ % gx ^ #??????? | | ?? ????? H x g^^#??????? | | ?? ?????# ## A## # ##g #??????? | | ?? #?????????## % #?# # ## #??????? | | ?## #????????### ############ ###??????? | | ?? ????????? ???????# #???????? | | ?? ????????? ???????# #???????? | | ?? ?????????? ????????# #???????? | | ?## ##???????### ###??????### ##???????? | | ?# ????????# #??????# #???????? | | ?# ????????# #??????# #???????? | | ??# #?######## ########## ##???????? | | ### ### # ##" ### # ### ###??????? | | #"" ## # ### % "## # ## ""##?????? | | """ % """""????? | | #"" % ""##"????? | | #"""""## # # # # ##"""""#??????? | | #"""""######### % #########"""""#??????? | | ####"##???????##"""####???????##"####??????? | | ???#"#?????????# ????????????#"#?????????? | | ???""#?????????## #?????????????""?????????? | | ???##???????????##?????????????????????????? | | ???????????????????????????????????????????? | | ???????????????????????????????????????????? | | ???????????????????????????????????????????? | +----------------------------------------------------+ Best States ------------- Heat Dissipation 37 Energy Generation 10 Energy Capacity 500 Matter Stores 147 Matter Capacity 300 Sight Range 16 Terrain Scan Density 10 Base Temperature (-) 150 Evasion (%) 63 Particle Charging 15 Item Schematics ----------------- None Robot Schematics ------------------ None Fabricated ------------ Nothing Repaired ---------- Nothing Alien Tech Used ----------------- None Achievements -------------- Dramatic Entrance Challenges ------------ None Cogshop Purchases (11) ------------------------ Lgt. Cannon (Loot Box) Aluminum Leg (Loot Box) Reaction Control System (Loot Box) Imp. Aluminum Leg (699) Autogun (Loot Box) Ion Engine (599) Airjet (Loot Box) Particle Charger (Loot Box) Heart of Steel (Loot Box) Rocket Launcher (1195) Imp. Cryofiber Web (Loot Box) Game ------ Seed AbsorptionDynamicMatter Manual? 0 Play Time 00:17:44 Cumulative 37.0 hours Start 2025.07.23 @ 05:16:06 End 2025.07.23 @ 05:32:31 Sessions 1 Manual Loads 0 Difficulty Rogue Special Mode AFD2019/Pay2Buy Game No. 99 Rogue 99 Adventurer 0 Explorer 0 Win Type - Total 0 Types 0/0/0/0/0/0/0/0/0/0 Lore% 34 Gallery% 34 Achievement% 27 Wizard Run 0 Options --------- Layout 1 ASCII 0 Keyboard 0 Movement Mouse Keybinds 0 Fullscreen 1 Font 24/Smallcaps Map View 50x35 Zoom Use 0% Tactical HUD 1 Map Filters NONE Filters NONE Steam 1 RUN: c2be8ae3-53dd-43cd-90e2-a26c4aaa4a5d